bitfinex/quotes_BTCUSD_20220304
["timestamp","ask_amount","ask_price","bid_price","bid_amount"]
[1646419674530,2.21967578,40682.0,40678.0,0.00020355]
[1646419675530,2.21967578,40682.0,40677.0,0.0031]
[1646419675779,2.21967578,40682.0,40678.0,0.00020355]
[1646419676880,2.21967578,40682.0,40677.0,0.0031]
[1646419677081,2.21967578,40682.0,40678.0,0.00019574]
[1646419678083,2.21967578,40682.0,40677.0,0.0031]
[1646419678283,2.21967578,40682.0,40678.0,0.00019574]
[1646419679284,2.21967578,40682.0,40677.0,0.0071]
[1646419680228,2.21967578,40682.0,40677.0,0.0031]
[1646419680727,2.21967578,40682.0,40677.0,0.00329296]
[1646419681029,2.34270078,40682.0,40677.0,0.00329296]
[1646419681431,2.21967578,40682.0,40677.0,0.00329296]
[1646419681629,2.28118678,40682.0,40677.0,0.0031]
[1646419681826,2.28118678,40682.0,40677.0,0.00329296]
[1646419682827,2.28118678,40682.0,40677.0,0.0031]
[1646419683028,2.28118678,40682.0,40677.0,0.0032932]
[1646419683282,2.27618678,40682.0,40677.0,0.0032932]
[1646419683983,2.27618678,40682.0,40677.0,0.0031]
[1646419684187,2.27618678,40682.0,40677.0,0.00328913]
[1646419684385,2.26348678,40682.0,40677.0,0.00328913]
[1646419685183,2.26348678,40682.0,40677.0,0.0031]
[1646419685385,2.26348678,40682.0,40677.0,0.00328913]
[1646419685884,0.061511,40682.0,40677.0,0.00328913]
[1646419686283,0.061511,40682.0,40677.0,0.0031]
[1646419686485,0.061511,40682.0,40677.0,0.00328925]
[1646419687128,0.31573603,40684.0,40677.0,0.00328925]
[1646419687328,0.26573603,40684.0,40677.0,0.00328925]
[1646419687529,0.26573603,40684.0,40677.0,0.0031]
[1646419687729,0.26573603,40684.0,40678.0,0.00018952]
[1646419688731,0.26573603,40684.0,40677.0,0.0031]
[1646419688932,17.17066403,40687.0,40679.0,0.00018952]
[1646419689335,17.17066403,40687.0,40680.0,0.36837]
[1646419689531,17.17066403,40687.0,40680.0,0.41727]
[1646419689732,17.17066403,40687.0,40683.0,0.36837]
[1646419690875,17.17066403,40687.0,40686.0,0.02458176]
[1646419691076,17.17066403,40687.0,40686.0,0.36837]
[1646419691280,17.17066403,40687.0,40686.0,0.39295176]
[1646419691475,17.17066403,40687.0,40686.0,0.3894317]
[1646419691676,17.17066403,40687.0,40686.0,0.4894317]
[1646419691878,17.15796403,40687.0,40686.0,0.4894317]
[1646419692677,17.15796403,40687.0,40686.0,0.3894317]
[1646419693077,17.15796403,40687.0,40686.0,1.1374317]
[1646419693379,17.15796403,40687.0,40686.0,1.39346334]
[1646419693779,17.15796403,40687.0,40686.0,1.59346334]
[1646419694177,17.15796403,40687.0,40686.0,1.3374317]
[1646419694627,17.15796403,40687.0,40686.0,1.33509023]
[1646419694828,17.15796403,40687.0,40686.0,0.58709023]
[1646419695929,17.15796403,40687.0,40686.0,0.48709023]
[1646419695930,17.40252115,40687.0,40686.0,0.48709023]
[1646419696131,17.40252115,40687.0,40686.0,0.46250847]
[1646419696730,17.40252115,40687.0,40686.0,0.36250847]
[1646419696934,17.38982115,40687.0,40686.0,0.36250847]
[1646419697129,17.38982115,40687.0,40686.0,0.35942304]
[1646419699585,17.38982115,40687.0,40683.0,0.36837]
[1646419700383,17.38982115,40687.0,40680.0,0.36837]
[1646419701587,0.22552387,40681.0,40680.0,0.36837]
[1646419701786,17.38982115,40687.0,40680.0,0.36837]
[1646419702842,0.20619578,40686.0,40680.0,0.36837]
[1646419703045,0.20619578,40686.0,40679.0,0.00018948]
[1646419703244,0.20619578,40686.0,40677.0,0.0031]
[1646419703245,0.37109654,40685.0,40677.0,0.0031]
[1646419703444,0.37109654,40685.0,40679.0,0.00018948]
[1646419703642,0.27161074,40680.0,40679.0,0.00018948]
[1646419704444,0.27161074,40680.0,40677.0,0.0031]
[1646419704642,0.27161074,40680.0,40677.0,0.00328948]
[1646419704844,0.27161074,40680.0,40678.0,0.36837]
[1646419705773,0.42932405,40680.0,40678.0,0.36837]
[1646419706376,0.42932405,40680.0,40677.0,0.00169179]
[1646419706775,0.42932405,40680.0,40677.0,0.00150231]
[1646419707776,0.42932405,40680.0,40678.0,1.0]
[1646419707976,0.111882,40679.0,40678.0,1.0]
[1646419709175,0.123036,40679.0,40678.0,1.0]
[1646419709531,0.33412774,40680.0,40678.0,1.0]
[1646419710734,0.001,40680.0,40678.0,1.0]
[1646419711032,0.0489,40682.0,40678.0,1.0]
[1646419711634,0.32031654,40681.0,40678.0,1.0]
[1646419711834,0.32031654,40681.0,40678.0,1.00018948]
[1646419712739,0.32031654,40681.0,40678.0,1.0]
[1646419713579,0.05,40685.0,40678.0,1.0]
[1646419713779,0.20619578,40686.0,40679.0,0.36837]
[1646419714181,17.20676403,40687.0,40679.0,0.36837]
[1646419714182,17.14526403,40687.0,40679.0,0.36855948]
[1646419714480,17.4332871,40687.0,40679.0,0.36855948]
[1646419714681,17.14526403,40687.0,40679.0,0.68742126]
[1646419714882,17.14526403,40687.0,40679.0,1.02989539]
[1646419715084,17.14526403,40687.0,40683.0,0.16382774]
[1646419715379,17.14526403,40687.0,40684.0,0.42984588]
[1646419716578,17.14526403,40687.0,40684.0,1.17784588]
[1646419718129,17.14526403,40687.0,40684.0,0.42984588]
[1646419718530,17.1424456,40687.0,40684.0,0.42984588]
[1646419718734,17.1424456,40687.0,40684.0,0.36837]
[1646419718932,0.23945651,40686.0,40684.0,0.36837]
[1646419719334,0.43630987,40686.0,40684.0,0.36837]
[1646419719533,0.23945651,40686.0,40684.0,0.36837]
[1646419719934,17.38670894,40687.0,40686.0,1.12892649]
[1646419720535,17.55930592,40687.0,40686.0,1.12892649]
[1646419721177,17.38670894,40687.0,40686.0,1.12892649]
[1646419722177,17.58698385,40687.0,40686.0,1.12892649]
[1646419722379,17.58698385,40687.0,40686.0,0.76054349]
[1646419723576,17.64848785,40687.0,40686.0,0.76054349]
[1646419724727,17.40422451,40687.0,40686.0,0.76054349]
[1646419725534,17.1424456,40687.0,40686.0,0.76054349]
[1646419725832,17.1424456,40687.0,40686.0,1.12892649]
[1646419726631,17.1424456,40687.0,40686.0,0.76054349]
[1646419727631,17.1424456,40687.0,40686.0,0.76150652]
[1646419727831,17.35503834,40687.0,40686.0,0.76150652]
[1646419729287,17.1424456,40687.0,40686.0,0.76150652]
[1646419730085,17.1424456,40687.0,40686.0,1.12988952]
[1646419730290,17.1424456,40687.0,40686.0,1.45947583]
[1646419731395,17.1424456,40687.0,40686.0,1.82973681]
[1646419732048,17.1424456,40687.0,40686.0,1.87863681]
[1646419732246,17.1424456,40687.0,40686.0,1.90321857]
[1646419732648,16.94244561,40687.0,40686.0,2.00321857]
[1646419732849,16.90161561,40687.0,40686.0,2.00321857]
[1646419735651,16.90161561,40687.0,40686.0,1.90321857]
[1646419735884,16.90161561,40687.0,40686.0,2.65121857]
[1646419736780,16.90161561,40687.0,40686.0,2.95121857]
[1646419737182,16.90161561,40687.0,40686.0,3.10121857]
[1646419737582,16.70161561,40687.0,40686.0,3.30101857]
[1646419737783,16.6075856,40687.0,40686.0,3.30101857]
[1646419738184,16.6075856,40687.0,40686.0,2.22343226]
[1646419738584,16.6075856,40687.0,40686.0,1.70317128]
[1646419738787,16.6075856,40687.0,40686.0,1.50317128]
[1646419738984,16.6075856,40687.0,40686.0,1.47858952]
[1646419739189,16.6075856,40687.0,40686.0,1.45427128]
[1646419739387,15.84704211,40687.0,40686.0,0.66914603]
[1646419739833,15.84704211,40687.0,40686.0,0.56914603]
[1646419740733,15.84704211,40687.0,40686.0,0.59372779]
[1646419741133,15.84704211,40687.0,40686.0,0.96556243]
[1646419741334,15.84704211,40687.0,40686.0,0.94098067]
[1646419741534,15.84704211,40687.0,40686.0,0.96556243]
[1646419741737,15.84704211,40687.0,40686.0,0.94098067]
[1646419742132,15.84704211,40687.0,40686.0,0.96556243]
[1646419742533,15.65301211,40687.0,40686.0,0.96556243]
[1646419742734,15.65301211,40687.0,40686.0,0.74118067]
[1646419743681,15.65301211,40687.0,40686.0,0.86576243]
[1646419744279,15.65301211,40687.0,40686.0,0.86076243]
[1646419744881,15.65301211,40687.0,40686.0,1.60876243]
[1646419745479,15.65301211,40687.0,40686.0,1.65766243]
[1646419746088,15.28424272,40687.0,40686.0,2.00349203]
[1646419746283,14.74653288,40687.0,40686.0,2.17060703]
[1646419746680,14.74653288,40687.0,40686.0,2.37060703]
[1646419747134,14.37776419,40687.0,40686.0,2.37060703]
[1646419747537,13.79620482,40687.0,40686.0,2.37060703]
[1646419747734,13.79620482,40687.0,40686.0,2.42060703]
[1646419747735,13.64854353,40687.0,40686.0,2.42060703]
[1646419748035,13.55433709,40687.0,40686.0,2.42060703]
[1646419748235,13.50765397,40687.0,40686.0,2.42060703]
[1646419748434,13.50765397,40687.0,40686.0,2.42197133]
[1646419749037,13.37678841,40687.0,40686.0,2.42197133]
[1646419749235,13.37678841,40687.0,40686.0,5.04825667]
[1646419749236,12.59119544,40687.0,40686.0,5.04825667]
[1646419749634,12.57384725,40687.0,40686.0,5.04825667]
[1646419749835,12.57384725,40687.0,40686.0,5.0851018]
[1646419750239,12.57384725,40687.0,40686.0,5.5851018]
[1646419751086,12.54079959,40687.0,40686.0,5.5851018]
[1646419751290,12.52321703,40687.0,40686.0,5.5851018]
[1646419751584,11.1841811,40687.0,40686.0,5.59701]
[1646419752585,10.9841811,40687.0,40686.0,5.59701]
[1646419752786,10.9316105,40687.0,40686.0,5.59701]
[1646419752987,10.8375805,40687.0,40686.0,5.59701]
[1646419755031,10.8375805,40687.0,40686.0,5.39701]
[1646419755233,10.8375805,40687.0,40686.0,4.78881716]
[1646419755434,10.8375805,40687.0,40686.0,1.39009209]
[1646419756030,11.10337324,40687.0,40686.0,1.39009209]
[1646419756232,11.33255858,40687.0,40686.0,1.39009209]
[1646419756631,11.33255858,40687.0,40686.0,1.29009209]
[1646419756833,11.33255858,40687.0,40686.0,0.56551033]
[1646419757032,11.33255858,40687.0,40686.0,0.2011643]
[1646419757233,11.57564984,40687.0,40686.0,0.0013643]
[1646419757633,11.56294984,40687.0,40686.0,0.0013643]
[1646419758779,11.56294984,40687.0,40679.0,0.19998861]
[1646419758780,0.00136,40686.0,40679.0,0.19998861]
[1646419758987,0.163105,40683.0,40679.0,0.19998861]
[1646419759380,0.213105,40683.0,40679.0,0.19998861]
[1646419759584,0.22462,40683.0,40679.0,0.19998861]
[1646419759783,0.23943124,40680.0,40679.0,0.1998]
[1646419759982,0.23943124,40680.0,40679.0,0.1999886]
[1646419760181,0.23943124,40680.0,40679.0,0.5683596]
[1646419760686,0.23943124,40680.0,40679.0,0.1999886]
[1646419760884,0.23943124,40680.0,40679.0,0.1998]
[1646419761883,0.23943124,40680.0,40677.0,0.00169089]
[1646419761884,0.40253624,40680.0,40677.0,0.00169089]
[1646419762141,0.06151,40679.0,40677.0,0.00150231]
[1646419762537,0.06151,40679.0,40676.0,0.00228856]
[1646419762538,1.513105,40678.0,40676.0,0.00228856]
[1646419762739,1.35,40676.0,40674.0,0.0011]
[1646419763539,0.061525,40675.0,40674.0,0.0011]
[1646419764340,1.35,40674.0,40671.0,0.01]
[1646419764537,1.5964501,40674.0,40671.0,0.01]
[1646419764738,1.80447897,40674.0,40671.0,0.01]
[1646419765347,1.80447897,40674.0,40660.0,0.001]
[1646419765348,1.411529,40672.0,40660.0,0.001]
[1646419765541,0.15,40666.0,40660.0,0.001]
[1646419765789,0.26222591,40664.0,40660.0,0.001]
[1646419765983,0.26222591,40664.0,40662.0,0.1999]
[1646419766384,0.26222591,40664.0,40660.0,0.001]
[1646419766385,0.163105,40663.0,40660.0,0.001]
[1646419766589,1.35,40660.0,40656.0,0.0001]
[1646419766791,0.35965692,40659.0,40655.0,0.002]
[1646419766985,0.40855692,40659.0,40655.0,0.002]
[1646419767188,0.38056056,40657.0,40655.0,0.002]
[1646419767384,0.0489,40656.0,40655.0,0.002]
[1646419768184,0.0489,40656.0,40655.0,0.2018]
[1646419768185,0.212005,40656.0,40655.0,0.2018]
[1646419768687,0.36935751,40657.0,40655.0,0.2018]
[1646419768884,0.12390496,40657.0,40655.0,0.2018]
[1646419771338,0.15,40661.0,40655.0,0.2018]
[1646419771538,0.83328816,40673.0,40656.0,0.368371]
[1646419771539,2.64250775,40670.0,40656.0,0.368371]
[1646419771944,0.18337835,40663.0,40656.0,0.36858744]
[1646419772136,0.00021638,40667.0,40656.0,0.00021644]
[1646419772339,0.26191171,40660.0,40657.0,0.368371]
[1646419773138,0.26191171,40660.0,40656.0,0.00021644]
[1646419774218,0.26191171,40660.0,40655.0,0.2018]
[1646419774417,0.26191171,40660.0,40656.0,0.00020862]
[1646419774621,0.26191171,40660.0,40657.0,0.368371]
[1646419774819,0.110438,40665.0,40657.0,0.368371]
[1646419775021,0.0489,40665.0,40656.0,0.00020862]
[1646419775220,0.1989,40665.0,40656.0,0.00020862]
[1646419775420,0.163105,40664.0,40655.0,0.2018]
[1646419775620,0.24478855,40659.0,40656.0,0.00019943]
[1646419775820,0.2489,40665.0,40656.0,0.00019943]
[1646419776022,0.2,40665.0,40656.0,0.00019943]
[1646419776222,0.28400765,40659.0,40656.0,0.00019943]
[1646419776524,0.28400765,40659.0,40655.0,0.2018]
[1646419776722,0.28400765,40659.0,40655.0,0.20199943]
[1646419777140,0.33400765,40659.0,40655.0,0.20199943]
[1646419777444,0.26286638,40658.0,40655.0,0.20199943]
[1646419777837,0.26286638,40658.0,40655.0,0.2018]
[1646419778739,0.16788526,40657.0,40655.0,0.2018]
[1646419778945,0.16788526,40657.0,40651.0,0.004]
[1646419778946,1.35,40655.0,40651.0,0.004]
[1646419779139,0.35953972,40654.0,40650.0,0.0011]
[1646419779339,0.05,40654.0,40650.0,0.0011]
[1646419779539,1.3989,40655.0,40652.0,0.1999]
[1646419779540,1.4489,40655.0,40652.0,0.1999]
[1646419781487,1.4439,40655.0,40652.0,0.1999]
[1646419781690,0.0939,40655.0,40652.0,0.1999]
[1646419782089,0.0939,40655.0,40652.0,0.1949]
[1646419782589,0.045,40655.0,40652.0,0.1949]
[1646419782888,0.15,40657.0,40652.0,0.1949]
[1646419783088,0.15,40656.0,40652.0,0.1949]
[1646419783287,0.34555765,40659.0,40652.0,0.1949]
[1646419783288,0.163105,40657.0,40652.0,0.1949]
[1646419783488,0.2,40656.0,40652.0,0.1949]
[1646419783690,0.54555765,40659.0,40653.0,0.368371]
[1646419783888,0.54555765,40659.0,40652.0,0.19510058]
[1646419784089,0.48400765,40659.0,40652.0,0.19510058]
[1646419784290,0.05,40656.0,40652.0,0.19510058]
[1646419784535,0.43400765,40659.0,40652.0,0.19510058]
[1646419784736,0.00020053,40662.0,40653.0,0.4196971]
[1646419784941,0.15,40671.0,40653.0,0.25662999]
[1646419785137,0.0489,40676.0,40656.0,0.368371]
[1646419785138,7.566e-05,40662.0,40656.0,0.368371]
[1646419785742,7.566e-05,40662.0,40658.0,0.368371]
[1646419785936,0.26154509,40674.0,40662.0,0.00015131]
[1646419786136,0.0999,40675.0,40668.0,0.32915129]
[1646419786337,0.371134,40684.0,40669.0,0.368371]
[1646419786338,3.40961186,40682.0,40669.0,0.368371]
[1646419786536,3.40961186,40682.0,40669.0,0.62926299]
[1646419786537,3.15883851,40682.0,40669.0,0.62926299]
[1646419786739,10.8498805,40687.0,40669.0,0.62926299]
[1646419786740,10.8248805,40687.0,40669.0,0.62926299]
[1646419787237,10.8248805,40687.0,40677.0,0.368371]
[1646419787739,9.054e-05,40684.0,40679.0,0.368371]
[1646419787937,9.054e-05,40684.0,40679.0,0.43441388]
[1646419788139,9.054e-05,40684.0,40682.0,1.116371]
[1646419788391,9.054e-05,40684.0,40683.0,0.75683492]
[1646419788790,10.8248805,40687.0,40685.0,0.368371]
[1646419788987,0.00021514,40686.0,40685.0,0.368371]
[1646419789790,10.8248805,40687.0,40685.0,0.368371]
[1646419791292,10.8248805,40687.0,40686.0,0.39295276]
[1646419791498,10.8248805,40687.0,40686.0,0.44185276]
[1646419791692,10.8248805,40687.0,40686.0,0.54185276]
[1646419792650,10.8248805,40687.0,40686.0,0.417271]
[1646419793042,11.07013195,40687.0,40686.0,0.417271]
[1646419794845,11.07013195,40687.0,40686.0,0.368371]
[1646419796188,11.07013195,40687.0,40681.0,0.003]
[1646419796389,11.07013195,40687.0,40682.0,0.368371]
[1646419796888,0.18286535,40683.0,40682.0,0.368371]
[1646419797690,0.00020644,40685.0,40682.0,0.368371]
[1646419798291,10.8248805,40687.0,40682.0,0.368371]
[1646419798489,0.00020644,40686.0,40682.0,0.368371]
[1646419798691,0.16964288,40684.0,40682.0,0.368371]
[1646419798992,0.3972474,40684.0,40679.0,0.1]
[1646419799191,0.3972474,40684.0,40680.0,0.368371]
[1646419799392,0.23486028,40682.0,40679.0,0.1]
[1646419799640,0.3972474,40684.0,40677.0,0.005]
[1646419799840,0.39745384,40684.0,40677.0,0.005]
[1646419800241,0.061518,40683.0,40678.0,0.368371]
[1646419800445,0.061517,40681.0,40676.0,0.32007414]
[1646419800641,0.061517,40681.0,40677.0,0.368371]
[1646419800843,0.06171651,40681.0,40676.0,0.32007414]
[1646419801540,0.06171651,40681.0,40677.0,0.368371]
[1646419801740,0.06171651,40681.0,40676.0,0.32007414]
[1646419801944,0.061517,40681.0,40676.0,0.32007414]
[1646419802142,0.06171651,40681.0,40677.0,0.368371]
[1646419802742,0.06171651,40681.0,40676.0,0.32007414]
[1646419802946,0.06171651,40681.0,40677.0,0.368371]
[1646419803144,0.061517,40681.0,40677.0,0.368371]
[1646419803388,0.06171698,40681.0,40677.0,0.368371]
[1646419803791,0.00019998,40681.0,40677.0,0.368371]
[1646419803995,0.00019998,40681.0,40677.0,0.42986358]
[1646419804389,10.8498805,40687.0,40677.0,0.42986358]
[1646419804588,0.00019998,40681.0,40677.0,0.42986358]
[1646419804790,0.00019998,40681.0,40680.0,0.65260637]
[1646419804989,0.2523586,40681.0,40680.0,0.65260637]
[1646419805192,0.2523586,40681.0,40680.0,0.368371]
[1646419805388,0.00019998,40681.0,40680.0,0.368371]
[1646419805594,10.8248805,40687.0,40680.0,0.368371]
[1646419805791,0.00019997,40683.0,40680.0,0.368371]
[1646419806590,10.8248805,40687.0,40681.0,0.29723254]
[1646419806792,10.6248805,40687.0,40682.0,0.368371]
[1646419807045,0.00019994,40684.0,40682.0,0.368371]
[1646419807246,10.53095045,40687.0,40682.0,0.368371]
[1646419807645,0.26870405,40685.0,40682.0,0.368371]
[1646419807847,10.53095045,40687.0,40683.0,0.0489]
[1646419808047,10.53095045,40687.0,40684.0,0.368371]
[1646419808248,10.53095045,40687.0,40685.0,0.0489]
[1646419808445,10.53095045,40687.0,40686.0,0.368371]
[1646419808846,10.82904342,40687.0,40686.0,0.518371]
[1646419809248,10.82904342,40687.0,40686.0,0.468371]
[1646419809645,10.82904342,40687.0,40686.0,0.368371]
[1646419810047,11.1085315,40687.0,40686.0,0.368371]
[1646419811086,10.82904342,40687.0,40686.0,0.368371]
[1646419811887,10.53095045,40687.0,40686.0,0.368371]
[1646419812094,10.53095045,40687.0,40686.0,0.3126905]
[1646419815340,10.53095045,40687.0,40686.0,1.44272034]
[1646419815541,10.53095045,40687.0,40686.0,1.41701152]
[1646419815739,10.53095045,40687.0,40686.0,1.49159328]
[1646419815740,10.16219117,40687.0,40686.0,1.49159328]
[1646419816143,9.62454477,40687.0,40686.0,1.49159328]
[1646419816340,9.25579372,40687.0,40686.0,1.49159328]
[1646419816540,9.04794623,40687.0,40686.0,1.58425828]
[1646419816738,9.04794623,40687.0,40686.0,1.85925828]
[1646419816938,8.67920666,40687.0,40686.0,1.85925828]
[1646419817639,8.67920666,40687.0,40686.0,1.98218128]
[1646419819589,8.67920666,40687.0,40686.0,1.67231686]
[1646419819990,8.67920666,40687.0,40686.0,0.87431686]
[1646419820195,8.67920666,40687.0,40686.0,0.84931686]
[1646419820591,8.67920666,40687.0,40686.0,0.82486686]
[1646419820790,8.67920666,40687.0,40686.0,0.62486686]
[1646419821390,8.67920666,40687.0,40686.0,1.39731686]
[1646419821587,8.67920666,40687.0,40686.0,1.44731686]
[1646419822239,8.67920666,40687.0,40686.0,1.42286686]
[1646419824343,8.66862913,40687.0,40686.0,1.42286686]
[1646419824543,8.66862913,40687.0,40686.0,1.61756686]
[1646419825887,8.66862913,40687.0,40686.0,0.86956686]
[1646419826290,8.66862913,40687.0,40686.0,0.77353726]
[1646419826491,8.88284046,40687.0,40686.0,0.4126905]
[1646419826699,8.9579377,40687.0,40686.0,0.4126905]
[1646419827089,8.66862913,40687.0,40686.0,0.4126905]
[1646419827689,8.66862913,40687.0,40686.0,0.3126905]
[1646419829390,8.94705197,40687.0,40686.0,0.3126905]
[1646419831041,8.94661147,40687.0,40686.0,0.3126905]
[1646419833044,8.66818863,40687.0,40686.0,0.3126905]
[1646419833491,8.66818863,40687.0,40686.0,0.87560878]
[1646419833694,8.66818863,40687.0,40686.0,1.76853838]
[1646419833893,8.66818863,40687.0,40686.0,1.79312014]
[1646419834093,8.66818863,40687.0,40686.0,1.76853838]
[1646419834290,8.66818863,40687.0,40686.0,1.95850536]
[1646419834692,8.66818863,40687.0,40686.0,2.37562036]
[1646419836893,8.66818863,40687.0,40686.0,2.21023514]
[1646419837545,8.66818863,40687.0,40686.0,2.31023514]
[1646419837743,8.66818863,40687.0,40686.0,2.28578514]
[1646419837944,8.66818863,40687.0,40686.0,2.45127165]
[1646419838543,8.66818863,40687.0,40686.0,2.65127165]
[1646419840890,8.66818863,40687.0,40686.0,2.48578514]
[1646419841295,8.66318863,40687.0,40686.0,2.33578514]
[1646419841491,8.66318863,40687.0,40686.0,1.58778514]
[1646419842393,8.66318863,40687.0,40686.0,1.21956686]
[1646419842791,8.66318863,40687.0,40686.0,1.58778514]
[1646419843193,8.66318863,40687.0,40686.0,1.21956686]
[1646419843393,8.66318863,40687.0,40686.0,1.58778514]
[1646419843591,8.66318863,40687.0,40686.0,1.16956686]
[1646419843793,8.66318863,40687.0,40686.0,0.98197226]
[1646419843994,8.66318863,40687.0,40686.0,0.83197226]
[1646419844644,8.66318863,40687.0,40686.0,0.63197226]
[1646419844844,8.66318863,40687.0,40686.0,0.53197226]
[1646419845344,8.66318863,40687.0,40686.0,0.63197226]
[1646419845845,8.66318863,40687.0,40686.0,0.5073905]
[1646419846045,8.66318863,40687.0,40686.0,0.3126905]
[1646419846444,8.85837761,40687.0,40686.0,0.3126905]
[1646419847543,8.34837761,40687.0,40686.0,0.3126905]
[1646419848800,8.40988261,40687.0,40682.0,0.1947]
[1646419848996,8.40988261,40687.0,40681.0,0.006]
[1646419849195,8.40988261,40687.0,40678.0,0.1]
[1646419849396,0.24217867,40680.0,40678.0,0.1]
[1646419849596,0.47980201,40680.0,40679.0,0.368372]
[1646419849997,0.23762334,40680.0,40679.0,0.368372]
[1646419854244,0.00018665,40686.0,40679.0,0.368372]
[1646419854542,0.00018665,40686.0,40676.0,0.368372]
[1646419854744,8.39837761,40687.0,40678.0,0.368372]
[1646419854944,0.00018665,40686.0,40678.0,0.368372]
[1646419855548,0.00018665,40686.0,40683.0,0.368372]
[1646419855794,0.00018665,40686.0,40682.0,0.26635953]
[1646419855995,8.15318863,40687.0,40684.0,0.368372]
[1646419856195,0.00018657,40686.0,40683.0,0.368372]
[1646419856395,0.28001017,40685.0,40682.0,0.26635953]
[1646419856597,0.28001017,40685.0,40683.0,0.368372]
[1646419856794,0.28001017,40685.0,40684.0,0.368372]
[1646419857196,0.33001017,40685.0,40684.0,0.368372]
[1646419857395,0.33001017,40685.0,40683.0,0.003]
[1646419857594,0.33001017,40685.0,40684.0,0.368372]
[1646419857997,0.28001017,40685.0,40684.0,0.368372]
[1646419858597,8.15337521,40687.0,40684.0,0.368372]
[1646419858797,8.35840316,40687.0,40684.0,0.1]
[1646419858998,8.15337521,40687.0,40685.0,0.368372]
[1646419859398,8.15337521,40687.0,40684.0,0.1]
[1646419859649,8.15318863,40687.0,40684.0,0.1]
[1646419859850,0.19791627,40686.0,40683.0,0.368372]
[1646419860050,8.15318863,40687.0,40683.0,0.368372]
[1646419860552,0.23906124,40685.0,40683.0,0.368372]
[1646419861549,0.00018658,40686.0,40684.0,0.36974116]
[1646419861751,0.00018658,40686.0,40685.0,0.368372]
[1646419861954,8.15318863,40687.0,40685.0,0.73811316]
[1646419862151,8.15318863,40687.0,40686.0,0.73812416]
[1646419862352,8.15318863,40687.0,40686.0,0.368383]
[1646419862949,8.15318863,40687.0,40686.0,1.066838]
[1646419864195,8.15318863,40687.0,40686.0,0.73812416]
[1646419864399,8.15318863,40687.0,40686.0,0.76270592]
[1646419864897,8.15318863,40687.0,40686.0,0.86270592]
[1646419865399,8.15318863,40687.0,40686.0,1.80960592]
[1646419865598,7.61552245,40687.0,40686.0,1.85563552]
[1646419865797,7.61552245,40687.0,40686.0,1.95563552]
[1646419866197,7.61552245,40687.0,40686.0,2.1897716]
[1646419866597,7.61552245,40687.0,40686.0,2.3844716]
[1646419866798,7.61552245,40687.0,40686.0,2.4844716]
[1646419867057,7.61552245,40687.0,40686.0,2.5589216]
[1646419867058,7.33241982,40687.0,40686.0,2.5589216]
[1646419867255,7.33241982,40687.0,40686.0,4.98520694]
[1646419870364,7.33241982,40687.0,40686.0,4.96075694]
[1646419870560,7.33241982,40687.0,40686.0,4.49101578]
[1646419871301,7.38241982,40687.0,40686.0,3.64301578]
[1646419871497,7.38241982,40687.0,40686.0,1.21673044]
[1646419871702,7.38241982,40687.0,40686.0,1.17070084]
[1646419872098,7.38241982,40687.0,40686.0,1.12180084]
[1646419872298,7.33241982,40687.0,40686.0,1.12180084]
[1646419872697,7.33241982,40687.0,40686.0,0.92180084]
[1646419873698,7.33241982,40687.0,40686.0,1.12180084]
[1646419874200,7.33241982,40687.0,40686.0,1.64047942]
[1646419874857,7.33241982,40687.0,40686.0,1.44577942]
[1646419875258,7.33241982,40687.0,40686.0,1.49467942]
[1646419875459,7.33241982,40687.0,40686.0,1.87338935]
[1646419875656,7.33241982,40687.0,40686.0,2.62138935]
[1646419875856,7.33241982,40687.0,40686.0,2.43737942]
[1646419876055,7.33241982,40687.0,40686.0,2.49884242]
[1646419876255,7.33241982,40687.0,40686.0,2.54487202]
[1646419876657,7.33241982,40687.0,40686.0,2.59487202]
[1646419876856,7.33241982,40687.0,40686.0,2.81264717]
[1646419877055,7.33241982,40687.0,40686.0,2.76264717]
[1646419877458,7.33241982,40687.0,40686.0,2.35017202]
[1646419877657,7.33241982,40687.0,40686.0,2.28870902]
[1646419877856,7.33241982,40687.0,40686.0,2.48340902]
[1646419878494,7.33241982,40687.0,40686.0,2.64473098]
[1646419879097,7.33241982,40687.0,40686.0,2.69473098]
[1646419879898,7.12878905,40687.0,40686.0,2.69473098]
[1646419880098,7.12878905,40687.0,40686.0,5.13583872]
[1646419880298,7.12878905,40687.0,40686.0,4.96558872]
[1646419880697,7.12878905,40687.0,40686.0,5.16028872]
[1646419881100,7.12878905,40687.0,40686.0,5.13583872]
[1646419881299,7.12878905,40687.0,40686.0,5.16028872]
[1646419881499,7.12878905,40687.0,40686.0,5.13583872]
[1646419882544,7.12878905,40687.0,40686.0,5.16028872]
[1646419882745,6.26238635,40687.0,40686.0,5.16028872]
[1646419882949,6.26238635,40687.0,40686.0,5.25295372]
[1646419882950,6.17835644,40687.0,40686.0,5.25295372]
[1646419883348,5.50644198,40687.0,40686.0,5.25295372]
[1646419883546,5.50644198,40687.0,40686.0,5.75295372]
[1646419884348,5.50644198,40687.0,40686.0,5.55825372]
[1646419884546,5.13776198,40687.0,40686.0,5.55825372]
[1646419884746,5.13776198,40687.0,40686.0,8.19461917]
[1646419885647,5.13776198,40687.0,40686.0,7.99991917]
[1646419887897,5.13776198,40687.0,40686.0,7.81414721]
[1646419888097,5.13776198,40687.0,40686.0,7.79932481]
[1646419888700,5.13776198,40687.0,40686.0,6.48264623]
[1646419888898,5.13776198,40687.0,40686.0,7.13798123]
[1646419889098,5.13776198,40687.0,40686.0,3.6652797]
[1646419889300,5.13776198,40687.0,40686.0,1.19296476]
[1646419889750,5.13776198,40687.0,40686.0,0.49296476]
[1646419890150,5.13776198,40687.0,40686.0,1.24096476]
[1646419890351,5.13776198,40687.0,40686.0,1.65985356]
[1646419890551,5.13776198,40687.0,40686.0,1.70985356]
[1646419890750,5.13776198,40687.0,40686.0,1.90985356]
[1646419891749,5.13776198,40687.0,40686.0,2.00985356]
[1646419894206,5.13776198,40687.0,40686.0,2.10251856]
[1646419895602,4.60009753,40687.0,40686.0,2.10251856]
[1646419898249,4.60009753,40687.0,40686.0,1.35451856]
[1646419898647,4.60009753,40687.0,40686.0,2.09022498]
[1646419898849,4.60009753,40687.0,40686.0,1.34222498]
[1646419899148,4.60009753,40687.0,40686.0,2.09022498]
[1646419899349,4.60009753,40687.0,40686.0,1.34222498]
[1646419900898,4.60009753,40687.0,40686.0,2.09022498]
[1646419901296,4.60009753,40687.0,40686.0,2.13912498]
[1646419901498,4.60009753,40687.0,40686.0,2.4031206]
[1646419901698,4.60009753,40687.0,40686.0,7.27107139]
[1646419901895,4.60009753,40687.0,40686.0,7.29552139]
[1646419902094,4.60009753,40687.0,40686.0,7.44552139]
[1646419902095,2.10772956,40687.0,40686.0,7.44552139]